[Event "67th Mexican-ch Open 2022"]
[Site "Chihuahua"]
[Date "2022.04.15"]
[Round "4.14"]
[White "Guerrero Cataldo, Juan Andres"]
[Black "Tapie Amione, Pablo Adib"]
[Result "1/2-1/2"]
[ECO "D02"]
[WhiteElo "1976"]
[BlackElo "2241"]
[Annotator "TA"]
[PlyCount "43"]
[EventDate "2022.04.12"]
[EventType "swiss"]
[EventCountry "MEX"]
[SourceTitle "playchess.com"]
[Source "ChessBase"]
[SourceQuality "1"]
[TimeControl "5400+30"]

{[%evp 9,43,16,4,16,18,20,27,18,19,18,50,13,41,43,87,36,58,60,57,47,45,25,34,34,80,88,110,90,82,73,160,174,187,187,946,256]} 1. d4 {[%emt 0:08:32]} Nf6 {[%emt 0:00:12]} 2. Nf3 {[%emt 0:00:03]} d5 {[%emt 0:00:08]} 3. g3 {[%emt 0:00:12]} c5 {[%emt 0:00:07]} 4. Bg2 {[%emt 0:01:27]} cxd4 {[%emt 0:00:17]} 5. O-O {[%emt 0:00:11]} h6 {[%emt 0:02:42]} 6. b3 {[%emt 0:00:30] D02: 1 d4 d5 2 Nf3 sidelines, including 2...Nf6 3 g3 and 2...Nf6 3 Bf4.} Nc6 {[%emt 0:00:22]} 7. Nxd4 {[%emt 0:00:07]} e5 {[%emt 0:00:15]} 8. Nxc6 {[%emt 0:00:01] White has an edge.} bxc6 {[%emt 0:00:02]} 9. c4 {[%emt 0:00:01] [#]} Rb8 $146 {[%emt 0:01:34]} ({Predecessor:} 9... Be7 10. Bb2 e4 11. Nc3 O-O 12. cxd5 cxd5 13. Qd4 Be6 14. Rac1 Qd7 15. Na4 Rfc8 {½-½ (71) Banusz,T (2641)-Dubov,D (2714) Chess.com INT 2021}) 10. cxd5 {[%emt 0:00:02]} cxd5 {[%emt 0:00:16]} 11. Bb2 {[%emt 0:00:23]} e4 {[%emt 0:02:15] [#]} 12. Nc3 {[%emt 0:04:33]} (12. Bd4 $1 $16) 12... Be7 {[%emt 0:04:11]} 13. Qd4 {[%emt 0:37:55]} a5 {[%emt 0:11:58]} 14. Rfd1 {[%emt 0:06:22][%cal Rc3d5]} Be6 {[%emt 0:02:47]} 15. Na4 {[%emt 0:07:20]} O-O {[%emt 0:02:42]} 16. Rac1 {[%emt 0:00:38]} Qe8 {[%emt 0:18:06]} (16... Re8 $14 {might be stronger.}) 17. Nc5 $16 {[%emt 0:02:17]} Bc8 {[%emt 0:10:24]} 18. Qe5 {[%emt 0:02:25]} Rb5 {[%emt 0:01:06]} 19. Rxd5 {[%emt 0:27:01] aiming for Rcd1.} Bb7 {[%emt 0:40:36]} (19... a4 $142) 20. Rdd1 {[%emt 0:00:30] 0x0.002ceff46a05dp-1022s more active pieces.} Bxc5 21. Rxc5 {[%emt 0:00:00]} Bc8 $2 {[%emt 0:01:00] [#]} (21... Qxe5 22. Rxe5 Rxe5 23. Bxe5 Rc8) 22. Qd4 $2 {[%emt 0:00:00][%mdl 32768] Weighted Error Value: White=0.09 (flawless) /Black=0.23 (precise) . An unexpected result.} (22. Rxb5 Ba6 23. Rxa5 Bxe2 24. Re1) 1/2-1/2

[Event "67th Mexican-ch Open 2022"]
[Site "Chihuahua"]
[Date "2022.04.15"]
[Round "4.15"]
[White "Hernandez Guerrero, Eduardo"]
[Black "Davalos Prieto, Abel Justo"]
[Result "1-0"]
[ECO "B67"]
[WhiteElo "2232"]
[BlackElo "2103"]
[Annotator "TA"]
[PlyCount "37"]
[EventDate "2022.04.12"]
[EventType "swiss"]
[EventCountry "MEX"]
[SourceTitle "playchess.com"]
[Source "ChessBase"]
[SourceQuality "1"]
[TimeControl "5400+30"]

{[%evp 16,37,39,5,18,14,22,20,159,161,154,158,146,97,163,172,205,201,243,225,232,235,238,245]} 1. e4 {[%emt 0:00:05]} c5 {[%emt 0:00:21]} 2. Nf3 {[%emt 0:00:12]} Nc6 {[%emt 0:00:22]} 3. Nc3 {[%emt 0:00:17]} Nf6 {[%emt 0:01:56]} 4. d4 {[%emt 0:00:10]} cxd4 {[%emt 0:00:30]} 5. Nxd4 {[%emt 0:00:06]} d6 {[%emt 0:00:21]} 6. Bg5 {[%emt 0:00:13]} e6 {[%emt 0:00:19]} 7. Qd2 {[%emt 0:00:13]} a6 {[%emt 0:00:30]} 8. O-O-O {[%emt 0:00:51]} Bd7 {[%emt 0:00:18] The main line 8...Bd7 scores better than 8...h6.} 9. Nb3 {[%emt 0:21:20]} b5 {[%emt 0:05:45] B67: Sicilian: Richter-Rauzer: 7...a6 8 0-0-0 Bd7, lines without 9 f4 Be7.} 10. a3 {[%emt 0:02:41]} Be7 {[%emt 0:09:40]} 11. f4 {[%emt 0:01:53]} Qb6 {[%emt 0:04:53]} (11... Rb8 $11 {keeps the balance.}) 12. e5 $1 $16 {[%emt 0:06:47]} Ng4 {[%emt 0:03:29]} 13. Bxe7 {[%emt 0:04:39]} ({Resist} 13. exd6 Bxg5 14. fxg5 Nf2 $16) 13... Nxe7 {[%emt 0:00:08]} 14. Qxd6 {[%emt 0:09:10] [#]} ({White should try} 14. exd6 Nf5 15. Bd3) 14... Qxd6 $146 {[%emt 0:00:08]} (14... Bc6 $16) ({Predecessor:} 14... Qe3+ 15. Qd2 Ng6 16. h3 Qxd2+ 17. Rxd2 Ne3 18. g3 Bc6 19. Rg1 h5 20. h4 Ne7 {1-0 (51) Bakalarz,L (2004)-Fiedorek,M (1862) Krakow 2016}) 15. Rxd6 $18 {[%emt 0:00:15][%cal Bd1d6,Bd6d2,Bd2g2][%mdl 32] White is clearly better.} Nf5 {[%emt 0:00:49]} 16. Rd2 {[%emt 0:00:43]} Bc6 {[%emt 0:03:32]} 17. Bd3 {[%emt 0:00:58] Threatens to win with Na5.} Nge3 {[%emt 0:02:10]} 18. Na5 {[%emt 0:02:43]} Bxg2 {[%emt 0:01:50] [#]} 19. Rxg2 $1 {[%emt 0:00:12][%mdl 512] Weighted Error Value: White=0.12 (very precise) /Black=0.42} 1-0

[Event "67th Mexican-ch Open 2022"]
[Site "Chihuahua"]
[Date "2022.04.15"]
[Round "4.16"]
[White "Gonzalez Arroyo, Lenin"]
[Black "Kowalski Davila, Emilio Luis"]
[Result "1-0"]
[ECO "B19"]
[WhiteElo "2210"]
[BlackElo "1735"]
[Annotator "TA"]
[PlyCount "37"]
[EventDate "2022.04.12"]
[EventType "swiss"]
[EventCountry "MEX"]
[SourceTitle "playchess.com"]
[Source "ChessBase"]
[SourceQuality "1"]
[TimeControl "5400+30"]

{[%evp 26,37,8,17,28,46,43,53,73,8,116,46,593,602]} 1. e4 {[%emt 0:00:11]} c6 {[%emt 0:00:07]} 2. d4 {[%emt 0:00:26]} d5 {[%emt 0:00:08]} 3. Nc3 {[%emt 0:00:12]} dxe4 {[%emt 0:00:14]} 4. Nxe4 {[%emt 0:00:14]} Bf5 {[%emt 0:00:11]} 5. Ng3 {[%emt 0:01:16]} Bg6 {[%emt 0:00:14]} 6. h4 {[%emt 0:01:41][%cal Bh2h4,Bh4h5][%mdl 32]} h6 {[%emt 0:00:18]} 7. Nf3 {[%emt 0:00:33]} Nd7 {[%emt 0:01:11]} 8. h5 {[%emt 0:01:17]} Bh7 {[%emt 0:00:45]} 9. Bd3 {[%emt 0:00:18]} Bxd3 {[%emt 0:00:14]} 10. Qxd3 {[%emt 0:00:08]} e6 {[%emt 0:00:19]} 11. Bd2 {[%emt 0:04:06]} Ngf6 {[%emt 0:01:30]} 12. O-O-O {[%emt 0:00:28]} Be7 {[%emt 0:01:02]} 13. Kb1 {[%emt 0:04:22]} Qc7 {[%emt 0:04:35]} 14. Ne4 {[%emt 0:01:07]} b5 {[%emt 0:14:08] B19: Classical Caro-Kann: 4...Bf5 main line.} 15. Nxf6+ {[%emt 0:10:13]} Nxf6 {[%emt 0:00:19]} 16. Ne5 {[%emt 0:00:32] [#]} Bd6 $146 {[%emt 0:03:17]} ({Predecessor:} 16... Rd8 17. g4 Bd6 18. f4 Nd5 19. Rhe1 Bxe5 20. Rxe5 Nf6 21. Ree1 O-O 22. g5 hxg5 23. h6 g4 24. hxg7 Kxg7 25. f5 Rd5 26. Qe3 Rxf5 27. Qh6+ Kg8 28. Rh1 {1-0 (28) Kernazhitsky,L (2357)-Cherniakhovsky,P (2270) Kiev 2001}) 17. Qg3 {[%emt 0:10:30]} (17. f4 $16) 17... Kf8 {[%emt 0:07:54]} (17... Ne4 $1 $11 {remains equal.} 18. Qe3 (18. Qxg7 Bxe5 19. dxe5 O-O-O $17) 18... Nxd2+ 19. Rxd2 (19. Qxd2 c5 $11) 19... Rc8) 18. Bf4 {[%emt 0:02:52] &Bianco is much more active. The black rooks are badly placed.} (18. Bb4 $16 Kg8 19. Bxd6 Qxd6 20. Qd3) 18... Nd5 $2 {[%emt 0:04:44][%mdl 8192] [#]} (18... Kg8 $14) 19. Ng6+ $1 {[%emt 0:00:33][%mdl 512] Weighted Error Value: White=0.33/Black=1.81} 1-0

[Event "67th Mexican-ch Open 2022"]
[Site "Chihuahua"]
[Date "2022.04.15"]
[Round "4.18"]
[White "Flores Guerrero, Jesus Aldair"]
[Black "Garduno Huerta, Joshua Emiliano"]
[Result "1-0"]
[ECO "D00"]
[WhiteElo "2251"]
[BlackElo "1622"]
[Annotator "TA"]
[PlyCount "153"]
[EventDate "2022.04.12"]
[EventType "swiss"]
[EventCountry "MEX"]
[SourceTitle "playchess.com"]
[Source "ChessBase"]
[SourceQuality "1"]
[TimeControl "5400+30"]

{[%evp 9,153,-23,-14,-15,-14,-15,-13,-18,-16,-21,2,0,0,0,0,0,0,2,16,10,26,27,27,21,38,27,29,29,65,65,65,61,61,61,65,61,65,65,65,65,120,61,61,61,61,61,61,61,61,61,61,61,61,0,61,61,61,61,62,61,61,61,61,61,61,61,141,141,141,141,141,141,148,148,148,155,178,148,148,141,141,141,129,129,106,0,130,129,141,132,221,177,312,317,331,312,339,284,381,380,350,347,355,323,447,458,712,686,603,673,669,612,673,684,748,753,1140,977,1509,1468,1500,1419,2122,2179,745,222,2166,1136,1551,1453,5089,2837,29978,29979,29979,29980,29981,29981,29984,29985,29986,29987,29987,29988,29989,29990]} 1. f4 {[%emt 0:01:55]} d5 {[%emt 0:00:58]} 2. Nf3 {[%emt 0:00:57]} Nf6 {[%emt 0:01:05]} 3. e3 {[%emt 0:00:43]} Bf5 {[%emt 0:01:11]} 4. d4 {[%emt 0:02:31]} e6 {[%emt 0:00:34]} 5. Bd3 {[%emt 0:00:22]} Bg6 {[%emt 0:00:27]} 6. O-O {[%emt 0:01:07] D00: 1 d4 d5: Unusual lines.} c5 {[%emt 0:01:01]} 7. c3 {[%emt 0:00:13]} Be7 {[%emt 0:01:22]} 8. Ne5 {[%emt 0:00:32] The position is equal.} Bxd3 {[%emt 0:01:13]} 9. Qxd3 {[%emt 0:01:37] [#]} Ne4 $146 {[%emt 0:00:44]} ({Predecessor:} 9... O-O 10. Nd2 Nbd7 11. Rf3 Nxe5 12. dxe5 c4 13. Qc2 Nd7 14. Rh3 g6 15. e4 Qb6+ {0-1 (41) Eremeenko,V (1956)-Kutepov,D (2084) Anapa 2008}) 10. Qb5+ {[%emt 0:03:04]} Nc6 {[%emt 0:06:04]} 11. Nxc6 {[%emt 0:04:01]} Qd7 {[%emt 0:00:25][%mdl 64] [#] Pin} 12. Nxa7 {[%emt 0:00:11]} Rxa7 {[%emt 0:00:08]} 13. Qxd7+ {[%emt 0:03:00]} Kxd7 {[%emt 0:00:03]} 14. Nd2 {[%emt 0:00:06]} Nxd2 {[%emt 0:02:59]} 15. Bxd2 {[%emt 0:00:07]} b5 {[%emt 0:08:13]} 16. a3 {[%emt 0:01:44]} Rha8 {[%emt 0:00:58][%cal Ob5b4]} 17. dxc5 {[%emt 0:02:39]} Bxc5 {[%emt 0:00:13]} 18. g4 {[%emt 0:00:36]} f5 {[%emt 0:08:26]} 19. gxf5 {[%emt 0:06:45]} exf5 {[%emt 0:01:39]} 20. Kf2 {[%emt 0:00:04]} Re8 {[%emt 0:09:12]} 21. Ke2 {[%emt 0:04:36]} Kc6 {[%emt 0:17:58]} 22. Kd3 {[%emt 0:00:12]} Kd6 {[%emt 0:02:06]} 23. Rf3 {[%emt 0:00:17]} Ke6 {[%emt 0:03:18]} 24. Rg1 {[%emt 0:00:11]} Kd6 {[%emt 0:01:12]} (24... Kf6 $14) 25. h4 {[%emt 0:00:19]} ({White should play} 25. Rh3 $16) 25... Ke6 {[%emt 0:01:17]} 26. Rfg3 {[%emt 0:04:47]} Rg8 {[%emt 0:01:26]} 27. Rg5 {[%emt 0:07:15]} Rf7 {[%emt 0:01:42]} 28. Be1 {[%emt 0:02:02]} Be7 {[%emt 0:06:46]} 29. R5g2 {[%emt 0:00:29]} Bc5 {[%emt 0:00:12]} 30. Rg3 {[%emt 0:02:48]} Be7 {[%emt 0:00:57]} 31. R3g2 {[%emt 0:01:24]} Bc5 {[%emt 0:00:08]} 32. Ke2 {[%emt 0:00:06]} Be7 {[%emt 0:01:40]} 33. Bf2 {[%emt 0:01:21]} Bd6 {[%emt 0:00:33]} 34. Kd2 {[%emt 0:00:50]} Be7 {[%emt 0:02:05]} 35. Kc2 {[%emt 0:00:10]} Bf6 {[%emt 0:02:59]} 36. Rh2 {[%emt 0:08:38]} Rc8 {[%emt 0:02:26]} 37. h5 {[%emt 0:01:21]} Kd6 {[%emt 0:03:18]} ({Black should try} 37... Be7 $14) 38. Bh4 $16 {[%emt 0:00:54]} Bxh4 {[%emt 0:00:08]} 39. Rxh4 {[%emt 0:00:13][%mdl 4096] Endgame KRR-KRR} Re8 {[%emt 0:00:29]} 40. Rh3 {[%emt 0:00:29]} Rfe7 {[%emt 0:00:08]} 41. Rhg3 {[%emt 0:01:39]} Rg8 {[%emt 0:00:46]} 42. Rg5 {[%emt 0:01:54]} Rf7 {[%emt 0:00:15]} 43. Kb3 {[%emt 0:02:41]} Kc5 {[%emt 0:00:11]} 44. Rd1 {[%emt 0:03:50]} Re8 {[%emt 0:00:58]} 45. Rd3 {[%emt 0:01:10]} Re6 {[%emt 0:04:09]} 46. Rg1 {[%emt 0:01:27]} Rh6 {[%emt 0:00:29]} 47. Rg5 {[%emt 0:01:07]} Re6 {[%emt 0:00:26]} 48. Kc2 {[%emt 0:00:09] White leaves nothing to chance now.} Ra6 {[%emt 0:06:10]} 49. Rd4 {[%emt 0:01:17]} Ra8 {[%emt 0:01:48] [#]} (49... Re6 $16 {is a better defense.}) 50. e4 $1 $18 {[%emt 0:00:43]} fxe4 {[%emt 0:01:02]} (50... dxe4 $142 51. Rxe4 Rd8 52. Re5+ Rd5) 51. Rdxd5+ {[%emt 0:07:40]} Kc6 {[%emt 0:00:01]} 52. Rc5+ {[%emt 0:00:11]} (52. Rxb5 Rxf4 53. Rbc5+ Kd6 $18) 52... Kd6 {[%emt 0:00:44]} 53. Rcf5 {[%emt 0:05:48]} ({Don't do} 53. Rxb5 Rxf4 54. Rxg7 Rf2+ 55. Kd1 e3 $18) 53... Raf8 {[%emt 0:01:00]} 54. Rxf7 {[%emt 0:04:47]} Rxf7 {[%emt 0:00:01] KR-KR} 55. Kd2 {[%emt 0:00:06]} (55. Rxb5 Rxf4 56. Kd2 Kc6 $18) 55... Rxf4 {[%emt 0:01:21]} 56. Ke3 {[%emt 0:00:27] Inhibits Rf2.} ({Not} 56. Rxb5 Kc6 57. Ke3 Rf1 $18) ({Weaker is} 56. Rxg7 Rf2+ 57. Ke3 Rxb2 $16) 56... Rh4 {[%emt 0:00:19]} 57. Rxb5 {[%emt 0:00:09]} Kc6 {[%emt 0:00:01]} (57... g6 $142 58. hxg6 hxg6) 58. a4 {[%emt 0:02:39]} Rh3+ {[%emt 0:01:03]} 59. Kxe4 {[%emt 0:02:24]} Rh4+ {[%emt 0:00:01]} 60. Kd3 {[%emt 0:00:17]} Rxa4 {[%emt 0:00:07]} 61. Rg5 {[%emt 0:01:05]} Rh4 {[%emt 0:00:09]} 62. b4 {[%emt 0:00:11]} Kb6 {[%emt 0:00:53]} 63. Kc2 {[%emt 0:00:10] And now Kb3 would win.} Rh2+ {[%emt 0:00:57]} 64. Kb3 {[%emt 0:00:15]} Rh1 {[%emt 0:00:06]} 65. Rxg7 {[%emt 0:02:38]} Rxh5 {[%emt 0:00:20]} 66. c4 {[%emt 0:00:11]} Rh1 {[%emt 0:00:31]} 67. c5+ $2 {[%emt 0:00:49]} (67. Re7 Rb1+ 68. Kc3) 67... Kb5 $2 {[%emt 0:00:08]} (67... Kc6 68. Rg8 Rb1+ 69. Kc4 Rc1+ 70. Kb3 Rb1+ 71. Kc3 Rc1+ 72. Kd2 Rb1) 68. Rb7+ {[%emt 0:00:06]} Kc6 {[%emt 0:00:16]} 69. Rb6+ {[%emt 0:00:15]} Kc7 {[%emt 0:00:01]} 70. Kc4 {[%emt 0:00:13] aiming for Ra6.} h5 {[%emt 0:00:55]} 71. Kb5 {[%emt 0:00:22] White mates.} Rg1 {[%emt 0:01:05]} 72. Rh6 {[%emt 0:00:16]} Rg5 {[%emt 0:00:01]} 73. Rh7+ {[%emt 0:00:16]} Kc8 {[%emt 0:00:14]} 74. Kb6 {[%emt 0:00:14]} Rg4 {[%emt 0:00:29]} 75. b5 {[%emt 0:00:13]} h4 {[%emt 0:01:02]} 76. c6 {[%emt 0:00:09]} Rg8 {[%emt 0:00:21]} 77. Ra7 {[%emt 0:00:35] Weighted Error Value: White=0.06 (flawless) /Black=0.16 (very precise)} 1-0

[Event "67th Mexican-ch Open 2022"]
[Site "Chihuahua"]
[Date "2022.04.15"]
[Round "4.19"]
[White "Paredes Guzman, Francisco Javier"]
[Black "Fernandez Hernandez, Arturo A."]
[Result "0-1"]
[ECO "A96"]
[WhiteElo "1891"]
[BlackElo "2376"]
[Annotator "TA"]
[PlyCount "124"]
[EventDate "2022.04.12"]
[EventType "swiss"]
[EventCountry "MEX"]
[SourceTitle "playchess.com"]
[Source "ChessBase"]
[SourceQuality "1"]
[TimeControl "5400+30"]

{[%evp 13,124,43,43,62,63,61,50,54,59,50,49,35,51,43,76,47,66,6,42,44,74,77,79,10,52,51,75,80,71,83,93,46,55,58,67,52,46,48,44,42,101,81,95,29,42,0,0,-45,-60,-65,0,-5,0,0,0,0,0,0,0,0,0,0,0,9,16,0,0,0,4,-16,0,0,0,0,0,0,0,-5,14,-8,15,16,17,20,49,-95,-95,-95,-95,-95,-95,-100,-92,-109,-116,-109,-111,-117,-115,-115,-112,-139,-132,-132,-132,-175,-167,-29979,-29980,-29980,-29981,-29980,-29981]} 1. d4 {[%emt 0:00:10]} f5 {[%emt 0:00:57]} 2. c4 {[%emt 0:00:08]} e6 {[%emt 0:00:15]} 3. Nf3 {[%emt 0:00:14]} Be7 {[%emt 0:00:09]} 4. Nc3 {[%emt 1:31:58]} Nf6 {[%emt 0:00:07]} 5. g3 {[%emt 0:00:00]} O-O {[%emt 0:00:09]} 6. Bg2 {[%emt 0:00:00]} d6 {[%emt 0:00:06]} 7. O-O {[%emt 0:00:00]} Ne4 {[%emt 0:00:04]} 8. Nxe4 {[%emt 0:00:00] A96: Classical Dutch: Fluid Systems: Early deviations.} fxe4 {[%emt 0:00:07]} 9. Nd2 {[%emt 0:00:00]} d5 {[%emt 0:00:19]} 10. f3 {[%emt 0:00:00] White is slightly better.} exf3 {[%emt 0:03:23]} 11. Nxf3 {[%emt 0:00:00]} Nc6 {[%emt 0:00:28]} 12. b3 {[%emt 0:00:00]} Bf6 {[%emt 0:16:45]} 13. Bb2 {[%emt 0:00:00]} Bd7 {[%emt 0:00:41] [#]} 14. Qd3 $146 {[%emt 0:00:00]} ({Predecessor:} 14. Qd2 Qe7 15. a4 Rfd8 16. Kh1 Be8 17. Ba3 Qd7 18. Ne5 Nxe5 19. dxe5 Be7 20. Bxe7 Qxe7 21. cxd5 {0-1 (59) Tejkal,J (1964)-Pekar,V (2157) Litomysl 2012}) 14... Be8 {[%emt 0:17:08]} 15. Bh3 {[%emt 0:00:00]} (15. Ne5 $14) 15... Bf7 {[%emt 0:08:17]} (15... Qe7 {looks sharper.} 16. cxd5 exd5 17. Ne5 Rd8) 16. e4 {[%emt 0:00:00]} dxe4 {[%emt 0:06:37]} 17. Qxe4 {[%emt 0:00:00]} Qd6 {[%emt 0:00:55]} 18. a3 {[%emt 0:00:00]} (18. Qe3 $16) 18... Rae8 {[%emt 0:05:08]} 19. Rad1 {[%emt 0:00:00]} Na5 {[%emt 0:03:45]} 20. Bc3 {[%emt 0:00:00]} Nc6 {[%emt 0:10:06]} 21. b4 $1 {[%emt 0:00:00]} a6 {[%emt 0:13:30]} 22. Ne5 {[%emt 0:00:00]} (22. Rd2 $16) 22... Bxe5 $14 {[%emt 0:01:00]} 23. dxe5 {[%emt 0:00:00]} Qe7 {[%emt 0:00:05]} 24. Qe3 {[%emt 0:00:00]} Bh5 {[%emt 0:02:17]} 25. Rd2 {[%emt 0:00:28]} (25. Rd3 {is interesting.} Rd8 26. Rxf8+ Kxf8 27. Rxd8+ Nxd8 28. Bf1) 25... Rxf1+ {[%emt 0:03:11]} 26. Bxf1 {[%emt 0:00:05]} Nd8 {[%emt 0:00:22]} ({Black should play} 26... Rd8 $14) 27. Bg2 $16 {[%emt 0:00:20]} c6 {[%emt 0:02:23]} 28. a4 {[%emt 0:03:40]} ({White should try} 28. Bd4 $16) 28... Nf7 $11 {[%emt 0:00:55]} 29. b5 {[%emt 0:01:32]} Qa3 {[%emt 0:01:50] Threatens to win with ...Qc1+.} 30. bxc6 {[%emt 0:00:26]} Qc1+ {[%emt 0:00:10]} 31. Bf1 $1 {[%emt 0:00:08] [#]} (31. Kf2 $2 Nh6 32. Bf3 Rf8 $19) 31... bxc6 {[%emt 0:01:14]} (31... Ng5 $1 $15 32. Rd3 (32. Qxg5 $2 Rf8 $19) 32... Qb1) 32. Rd3 {[%emt 0:02:06]} Qc2 {[%emt 0:00:51]} 33. a5 $36 {[%emt 0:00:32][%mdl 2048] White is pushing.} Rf8 {[%emt 0:00:43][%cal Of7g5]} 34. Rd2 {[%emt 0:01:15]} Qc1 {[%emt 0:01:00][%cal Of7e5]} 35. Rd3 {[%emt 0:01:50]} Qb1 {[%emt 0:00:21][%cal Of7e5] aiming for ...Nxe5!} 36. Qb6 {[%emt 0:01:01]} Qc2 {[%emt 0:01:15] And now ...Ng5 would win.} 37. Qb2 {[%emt 0:00:56]} Qa4 {[%emt 0:00:39]} 38. Qb4 {[%emt 0:00:31]} Qc2 {[%emt 0:01:18]} 39. Qb2 {[%emt 0:00:16]} (39. Rd2 {keeps more tension.} Qc1 40. Qb2 Qe1 41. Rf2) 39... Qxb2 {[%emt 0:00:07]} 40. Bxb2 {[%emt 0:00:05]} Rb8 {[%emt 0:00:14] Inhibits Rb3.} 41. Rd2 {[%emt 0:00:48]} c5 {[%emt 0:00:23]} 42. h4 {[%emt 0:00:49]} Rb3 {[%emt 0:00:52]} 43. Bh3 {[%emt 0:01:26]} Rxg3+ {[%emt 0:00:24]} 44. Kh2 {[%emt 0:00:05]} Rg6 {[%emt 0:00:14]} 45. Rd7 {[%emt 0:00:17]} Be2 {[%emt 0:00:49]} 46. Rc7 {[%emt 0:00:32]} h5 {[%emt 0:00:22]} (46... Nh6 $5 {[%cal Re2c4]}) 47. Rxc5 {[%emt 0:00:38] Strongly threatening Rc8+.} Nh6 $1 {[%emt 0:00:41] White must now prevent ...Ng4+.} 48. Bc1 {[%emt 0:00:29]} Ng4+ {[%emt 0:00:15]} 49. Bxg4 {[%emt 0:00:05]} (49. Kg1 $14 {keeps the upper hand.} Nxe5+ 50. Bg5 Nxc4 51. Bg2) 49... Rxg4 $14 {[%emt 0:02:09][%mdl 4096] Endgame KRB-KRB} 50. Bg5 {[%emt 0:00:37]} Bxc4 {[%emt 0:00:00]} ({Reject} 50... Rxc4 $6 51. Rxc4 Bxc4 52. Kg3 $11) 51. Rc8+ {[%emt 0:00:50]} Kh7 {[%emt 0:00:00]} 52. Rf8 {[%emt 0:00:17]} Bd5 {[%emt 0:00:00]} 53. Rf2 {[%emt 0:00:46]} Ra4 {[%emt 0:00:00]} 54. Bd8 {[%emt 0:01:10]} Re4 {[%emt 0:00:00]} 55. Rf7 {[%emt 0:00:20]} Kg6 {[%emt 0:00:27] ...Re2+ is the strong threat.} 56. Ra7 {[%emt 0:00:12]} Bc4 {[%emt 0:00:07]} ({Worse is} 56... Rxe5 57. Rxa6 Re2+ 58. Kg1 $15) 57. Be7 {[%emt 0:00:17]} Kf5 {[%emt 0:00:43]} 58. Bd8 {[%emt 0:00:50]} g6 {[%emt 0:00:43]} 59. Bf6 {[%emt 0:00:56]} Kg4 {[%emt 0:00:12] ( -> ...Re2+)} 60. Rc7 $2 {[%emt 0:00:17] [#]} (60. Rg7 $19) 60... Re2+ $1 {[%emt 0:00:26] Black mates.} 61. Kg1 {[%emt 0:00:11] [#]} Kg3 $1 {[%emt 0:00:07][%cal Re2e1]} 62. Kf1 {[%emt 0:00:04]} Re4+ {[%emt 0:00:05] Weighted Error Value: White=0.29 (precise) /Black=0.08 (flawless)} 0-1

[Event "67th Mexican-ch Open 2022"]
[Site "Chihuahua"]
[Date "2022.04.15"]
[Round "4.20"]
[White "Amezcua Luria, Jesus"]
[Black "Maass Garza R, Alejandro"]
[Result "0-1"]
[ECO "D93"]
[WhiteElo "2001"]
[BlackElo "2265"]
[Annotator "TA"]
[PlyCount "48"]
[EventDate "2022.04.12"]
[EventType "swiss"]
[EventCountry "MEX"]
[SourceTitle "playchess.com"]
[Source "ChessBase"]
[SourceQuality "1"]
[TimeControl "5400+30"]

{[%evp 15,48,12,8,4,24,15,15,16,17,29,42,35,72,63,70,62,117,116,115,85,98,37,44,37,82,82,80,70,112,114,101,87,85,-911,-900]} 1. d4 {[%emt 0:07:59]} Nf6 {[%emt 0:00:32]} 2. c4 {[%emt 0:00:12]} d5 {[%emt 0:00:38]} 3. Nc3 {[%emt 0:00:24]} g6 {[%emt 0:00:30]} 4. Bf4 {[%emt 0:00:27]} c6 {[%emt 0:00:28]} 5. Nf3 {[%emt 0:01:12]} Bg7 {[%emt 0:00:11]} 6. e3 {[%emt 0:01:22]} O-O {[%emt 0:00:35]} 7. Be2 {[%emt 0:02:40][%cal Bf1e2,Be2c4,Bc4b3][%mdl 32]} dxc4 {[%emt 0:07:05]} 8. Bxc4 {[%emt 0:01:43]} Nbd7 {[%emt 0:02:04][%cal Bb8d7,Bd7b6,Bb6d5,Bd5c3][%mdl 32]} 9. h3 {[%emt 0:01:09] D93: Grünfeld: 4 Nf3 Bg7 5 Bf4 0-0 6 e3.} Nb6 {[%emt 0:04:24]} 10. Bb3 {[%emt 0:00:53]} Nbd5 {[%emt 0:02:09]} 11. Bh2 {[%emt 0:00:20] The position is equal.} Nxc3 {[%emt 0:00:41]} 12. bxc3 {[%emt 0:00:08]} Qa5 {[%emt 0:00:50]} 13. Rc1 {[%emt 0:01:05]} Ne4 {[%emt 0:19:09]} 14. O-O {[%emt 0:00:43]} Qh5 {[%emt 0:01:39]} 15. Ne5 {[%emt 0:03:16] [#]} Qg5 $146 {[%emt 0:10:15]} ({Better is} 15... Qxd1 $14 16. Rfxd1 Bh6) ({Predecessor:} 15... Qh4 16. Qe2 a5 17. a4 b5 18. axb5 cxb5 19. Bd5 Bxe5 20. Bxe5 Be6 21. g3 Qxh3 22. Bxe4 {1-0 (41) Inkiov,V (2445)-Drose,D (2010) Paderborn 2015}) 16. Bf4 $16 {[%emt 0:02:05]} Qh4 {[%emt 0:01:03]} 17. Nf3 {[%emt 0:08:53]} Qh5 {[%emt 0:00:18]} 18. Nd2 {[%emt 0:01:14]} (18. Qc2 $16 Bf5 19. Qd1) 18... Nxd2 {[%emt 0:03:24]} 19. Qxd2 {[%emt 0:00:10]} g5 {[%emt 0:11:03]} 20. Bg3 {[%emt 0:13:03]} Qg6 {[%emt 0:03:48]} 21. Rce1 {[%emt 0:09:45]} g4 {[%emt 0:06:51]} 22. hxg4 {[%emt 0:07:17]} Bxg4 {[%emt 0:00:57]} 23. e4 {[%emt 0:06:50] Prevents Bf5.} Bh6 {[%emt 0:00:46]} 24. Bf4 {[%emt 0:00:12][%mdl 8192] [#]} (24. f4 $16) 24... Bf3 $1 {[%emt 0:00:11] Weighted Error Value: White=0.60/Black=0.13 (very precise)} ({Not} 24... Bh3 25. g3 Bxf4 26. Qxf4 $17) 0-1